[Event "POL-chT 2nd League Juniors 2020"]
[Site "Sypniewo"]
[Date "2020.10.27"]
[Round "6.18"]
[White "Wieczorek, Maja"]
[Black "Mainka, Anna"]
[Result "1-0"]
[ECO "D30"]
[WhiteElo "1141"]
[BlackElo "1280"]
[Annotator "NA RC"]
[PlyCount "131"]
[EventDate "2020.10.23"]
[EventType "team-tourn"]
[EventCountry "POL"]
[SourceTitle "playchess.com"]
[Source "ChessBase"]
[SourceQuality "1"]
[TimeControl "5400+30"]

1. d4 {[%emt 0:00:00]} d5 {[%emt 0:00:00]} 2. c4 {[%emt 0:00:00]} e6 {[%emt 0:00:00]} 3. cxd5 {[%emt 0:00:16]} exd5 {[%emt 0:00:00]} 4. Nf3 {[%emt 0:00:22]} Nf6 {[%emt 0:00:04]} 5. Nc3 {[%emt 0:00:26]} c6 {[%emt 0:00:46]} 6. Bg5 {[%emt 0:01:33]} Be7 {[%emt 0:00:55]} 7. e3 {[%emt 0:01:26]} Bg4 {[%emt 0:05:41]} 8. h3 {[%emt 0:04:03]} Bh5 {[%emt 0:00:27]} 9. Bd3 {[%emt 0:00:28]} Nbd7 {[%emt 0:00:56]} 10. O-O {[%emt 0:01:50]} O-O {[%emt 0:00:30]} 11. Rb1 {[%emt 0:02:50]} Ne4 {[%emt 0:06:50]} 12. Bf4 {[%emt 0:03:29]} Bxf3 {[%emt 0:02:49]} 13. gxf3 {[%emt 0:11:38]} Ng5 {[%emt 0:01:34]} 14. Bxg5 {[%emt 0:09:01]} Bxg5 {[%emt 0:00:06]} 15. f4 {[%emt 0:00:18]} Be7 {[%emt 0:03:38]} 16. Kh1 {[%emt 0:02:52]} Nf6 {[%emt 0:02:52]} 17. Rg1 {[%emt 0:00:47]} Qd7 {[%emt 0:01:32]} 18. Qf3 {[%emt 0:01:00]} Rfe8 {[%emt 0:05:00]} 19. Qg3 {[%emt 0:05:40]} Bf8 {[%emt 0:00:47]} 20. Rg2 {[%emt 0:03:18]} g6 {[%emt 0:12:18]} 21. f5 {[%emt 0:09:47]} Bg7 {[%emt 0:00:58]} 22. Rbg1 {[%emt 0:01:46]} Ne4 {[%emt 0:01:32]} 23. Nxe4 {[%emt 0:01:18]} dxe4 {[%emt 0:00:08]} 24. fxg6 {[%emt 0:03:47]} hxg6 {[%emt 0:00:20]} 25. Bc4 {[%emt 0:00:11]} Kf8 {[%emt 0:05:12]} 26. h4 {[%emt 0:03:41]} c5 {[%emt 0:01:15]} 27. h5 {[%emt 0:04:34]} cxd4 {[%emt 0:06:18]} 28. hxg6 {[%emt 0:00:32]} fxg6 {[%emt 0:00:19]} 29. Qf4+ {[%emt 0:00:44]} Ke7 {[%emt 0:01:02]} 30. Qf7+ {[%emt 0:00:15]} Kd8 {[%emt 0:00:06]} 31. Qxd7+ {[%emt 0:01:11]} Kxd7 {[%emt 0:00:07]} 32. Bb5+ {[%emt 0:00:06]} Kc7 {[%emt 0:00:31]} 33. Bxe8 {[%emt 0:00:21]} Rxe8 {[%emt 0:00:08]} 34. Rxg6 {[%emt 0:00:43]} Be5 {[%emt 0:00:28]} 35. exd4 {[%emt 0:01:29]} Rh8+ {[%emt 0:00:35]} 36. Kg2 {[%emt 0:00:09]} Rh2+ {[%emt 0:00:09]} 37. Kf1 {[%emt 0:00:15]} Bxd4 {[%emt 0:00:12]} 38. R6g2 {[%emt 0:00:45]} Rh6 {[%emt 0:01:14]} 39. Rg4 {[%emt 0:01:34]} Re6 {[%emt 0:02:16]} 40. b3 {[%emt 0:01:42]} Rf6 {[%emt 0:04:22]} 41. R1g2 {[%emt 0:00:41]} Re6 {[%emt 0:00:48]} 42. Ke2 {[%emt 0:00:25]} Kc6 {[%emt 0:01:00]} 43. Rg6 {[%emt 0:00:57]} Bf6 {[%emt 0:00:18]} 44. R2g4 {[%emt 0:01:03]} Kd5 {[%emt 0:00:44]} 45. Rf4 {[%emt 0:00:56]} Ke5 {[%emt 0:00:59]} 46. Ke3 {[%emt 0:01:03]} Rc6 {[%emt 0:01:42]} 47. Rxe4+ {[%emt 0:04:54]} Kf5 {[%emt 0:00:26]} 48. Rgg4 {[%emt 0:01:06]} Rc3+ {[%emt 0:00:20]} 49. Ke2 {[%emt 0:00:28]} Rc2+ {[%emt 0:00:33]} 50. Kf3 {[%emt 0:00:23]} Rxa2 {[%emt 0:00:20]} 51. Rgf4+ {[%emt 0:00:28]} Kg5 {[%emt 0:00:12]} 52. Rb4 {[%emt 0:00:48]} b6 {[%emt 0:00:29]} 53. Rb5+ {[%emt 0:00:19]} Kg6 {[%emt 0:00:17]} 54. Kg4 {[%emt 0:01:29]} Ra1 {[%emt 0:00:39]} 55. Rbf5 {[%emt 0:01:24]} Bd8 56. Rf8 {[%emt 0:01:52]} Bc7 {[%emt 0:02:25]} 57. R4f6+ {[%emt 0:01:36]} Kg7 {[%emt 0:00:28]} 58. R6f7+ {[%emt 0:00:11]} Kh6 {[%emt 0:00:24]} 59. Rxc7 {[%emt 0:00:18]} Rg1+ {[%emt 0:00:11]} 60. Kf3 {[%emt 0:00:12]} Rg6 {[%emt 0:00:14]} 61. Rh8+ {[%emt 0:01:00]} Kg5 {[%emt 0:00:22]} 62. Rc4 {[%emt 0:01:24]} Rf6+ {[%emt 0:00:09]} 63. Kg3 {[%emt 0:00:48]} Kg6 {[%emt 0:00:11]} 64. Rg4+ {[%emt 0:00:19]} Kf5 {[%emt 0:00:10]} 65. Rf4+ {[%emt 0:00:15]} Ke5 {[%emt 0:00:17]} 66. Re8+ {[%emt 0:00:18]} 1-0

[Event "POL-chT 2nd League Juniors 2020"]
[Site "Sypniewo"]
[Date "2020.10.27"]
[Round "6.19"]
[White "Lewandowski, Wiktor"]
[Black "Gardian, Adam"]
[Result "1/2-1/2"]
[ECO "B13"]
[WhiteElo "1756"]
[BlackElo "1859"]
[Annotator "NA RC"]
[PlyCount "60"]
[EventDate "2020.10.23"]
[EventType "team-tourn"]
[EventCountry "POL"]
[SourceTitle "playchess.com"]
[Source "ChessBase"]
[SourceQuality "1"]
[TimeControl "5400+30"]

1. e4 {[%emt 0:00:00]} c6 {[%emt 0:00:00]} 2. d4 {[%emt 0:00:00]} d5 {[%emt 0:00:00]} 3. exd5 {[%emt 0:00:00]} cxd5 {[%emt 0:00:00]} 4. Bd3 {[%emt 0:00:00]} Nc6 {[%emt 0:00:10]} 5. c3 {[%emt 0:00:00]} Qc7 {[%emt 0:00:04]} 6. Ne2 {[%emt 0:00:27]} Bg4 {[%emt 0:00:52]} 7. f3 {[%emt 0:01:26] The old main line.} Bh5 {[%emt 0:05:33]} 8. Bf4 {[%emt 0:02:32]} Qd7 {[%emt 0:06:45] B13: Caro-Kann: Exchange Variation and Panov-Botvinnik Attack.} 9. Nd2 {[%emt 0:06:27]} Nf6 {[%emt 0:00:46]} 10. O-O {[%emt 0:02:50]} e6 {[%emt 0:08:08]} 11. Nb3 {[%emt 0:11:36]} Bg6 {[%emt 0:02:51]} 12. Ng3 {[%emt 0:07:10] [#]} b6 $146 {[%emt 0:12:17]} ({Predecessor:} 12... Be7 13. Qd2 O-O 14. Rae1 b6 15. Bg5 Bxd3 16. Qxd3 Ne8 17. Bxe7 Nxe7 18. Nd2 a5 {0-1 (54) Heinemann,T (2490)-Medvegy,Z (2556) Germany 2008}) 13. a4 {[%emt 0:02:58]} Bd6 {[%emt 0:00:25]} 14. Bxd6 {[%emt 0:03:25]} Qxd6 {[%emt 0:00:15]} 15. f4 {[%emt 0:02:37]} Bxd3 {[%emt 0:13:24]} 16. Qxd3 {[%emt 0:00:12]} O-O {[%emt 0:00:07]} 17. Rae1 {[%emt 0:03:18]} a6 {[%emt 0:11:15]} 18. Nd2 {[%emt 0:02:02]} b5 {[%emt 0:02:22]} 19. axb5 {[%emt 0:01:52]} axb5 {[%emt 0:00:05]} 20. Nf3 {[%emt 0:01:15]} b4 {[%emt 0:01:52]} ({Don't go for} 20... Qxf4 $2 21. Ne5 $18) 21. f5 $11 {[%emt 0:03:20]} bxc3 {[%emt 0:03:32]} 22. bxc3 {[%emt 0:00:39]} Nd8 {[%emt 0:06:01]} 23. fxe6 {[%emt 0:03:29]} Nxe6 {[%emt 0:00:28]} 24. Ne5 {[%emt 0:02:41]} Nd7 {[%emt 0:07:20]} 25. Nf5 {[%emt 0:02:44]} Nxe5 {[%emt 0:01:21]} 26. Rxe5 {[%emt 0:00:08]} Qc7 {[%emt 0:00:51]} 27. Qf3 {[%emt 0:06:52]} Rad8 {[%emt 0:02:21]} 28. Re3 {[%emt 0:07:40]} Qd7 {[%emt 0:01:30]} 29. Qg4 {[%emt 0:01:20]} g6 {[%emt 0:06:46]} 30. Rh3 {[%emt 0:06:59]} f6 1/2-1/2

[Event "POL-chT 2nd League Juniors 2020"]
[Site "Sypniewo"]
[Date "2020.10.27"]
[Round "6.20"]
[White "Kubica, Dominik"]
[Black "Kolodziejski, Piotr"]
[Result "1/2-1/2"]
[ECO "B21"]
[WhiteElo "1577"]
[BlackElo "1905"]
[Annotator "RC"]
[PlyCount "74"]
[EventDate "2020.10.23"]
[EventType "team-tourn"]
[EventCountry "POL"]
[SourceTitle "playchess.com"]
[Source "ChessBase"]
[SourceQuality "1"]
[TimeControl "5400+30"]

1. e4 {[%emt 0:00:00]} c5 {[%emt 0:00:00]} 2. d4 {[%emt 0:00:00]} cxd4 {[%emt 0:00:00]} 3. c3 {[%emt 0:00:00]} Nf6 {[%emt 0:00:20]} 4. e5 {[%emt 0:00:30]} Nd5 {[%emt 0:00:10]} 5. cxd4 {[%emt 0:00:37]} d6 {[%emt 0:03:24]} 6. Bc4 {[%emt 0:04:33]} Nb6 {[%emt 0:01:00]} 7. Bb3 {[%emt 0:01:11]} Nc6 {[%emt 0:06:09]} 8. Nf3 {[%emt 0:07:02]} dxe5 {[%emt 0:01:54]} 9. Nxe5 {[%emt 0:11:55]} Nxe5 {[%emt 0:00:58]} 10. dxe5 {[%emt 0:00:12]} Qxd1+ {[%emt 0:07:39]} 11. Kxd1 {[%emt 0:10:48]} Bd7 {[%emt 0:05:38]} 12. Nc3 {[%emt 0:04:13]} e6 {[%emt 0:02:50]} 13. Be3 {[%emt 0:01:18]} Bc6 {[%emt 0:00:33]} 14. Rg1 {[%emt 0:02:48]} Nd7 {[%emt 0:05:34]} 15. f4 {[%emt 0:03:14]} Bc5 {[%emt 0:06:21]} 16. Ke2 {[%emt 0:02:53]} Ke7 {[%emt 0:01:44]} 17. Rac1 {[%emt 0:04:04]} Bxe3 {[%emt 0:01:36]} 18. Kxe3 {[%emt 0:00:15]} Rac8 {[%emt 0:03:55]} 19. g3 {[%emt 0:08:46]} Nc5 {[%emt 0:05:04]} 20. Bc2 {[%emt 0:03:12]} a5 {[%emt 0:01:43]} 21. Ne4 {[%emt 0:08:05]} Bxe4 {[%emt 0:03:47]} 22. Bxe4 {[%emt 0:00:39]} Rhd8 {[%emt 0:02:09]} 23. Rg2 {[%emt 0:05:30]} Nxe4 {[%emt 0:03:10]} 24. Rxc8 {[%emt 0:00:23]} Rxc8 {[%emt 0:00:09]} 25. Kxe4 {[%emt 0:00:08]} b5 {[%emt 0:01:54]} 26. Rd2 {[%emt 0:03:49]} Rc4+ {[%emt 0:00:19]} 27. Ke3 {[%emt 0:01:22]} Rc6 {[%emt 0:00:51]} 28. a3 {[%emt 0:02:28]} a4 {[%emt 0:01:46]} 29. Ke4 {[%emt 0:07:57]} h5 {[%emt 0:01:10]} 30. h3 {[%emt 0:03:05]} g6 {[%emt 0:05:52]} 31. g4 {[%emt 0:03:29]} hxg4 {[%emt 0:01:03]} 32. hxg4 {[%emt 0:00:05]} Rc4+ {[%emt 0:00:25]} 33. Rd4 {[%emt 0:01:12]} Rc2 {[%emt 0:00:57]} 34. Rb4 {[%emt 0:00:19]} Rc5 {[%emt 0:00:14]} 35. Rd4 {[%emt 0:00:42]} Rc2 {[%emt 0:00:47]} 36. Rb4 {[%emt 0:00:08]} Rc5 {[%emt 0:00:09]} 37. Rd4 {[%emt 0:00:32]} Rc2 {[%emt 0:00:50]} 1/2-1/2

[Event "POL-chT 2nd League Juniors 2020"]
[Site "Sypniewo"]
[Date "2020.10.27"]
[Round "6.21"]
[White "Komendecki, Antoni"]
[Black "Zaborski, Igor"]
[Result "1-0"]
[ECO "B08"]
[WhiteElo "1801"]
[BlackElo "1612"]
[Annotator "NA RC"]
[PlyCount "51"]
[EventDate "2020.10.23"]
[EventType "team-tourn"]
[EventCountry "POL"]
[SourceTitle "playchess.com"]
[Source "ChessBase"]
[SourceQuality "1"]
[TimeControl "5400+30"]

1. e4 {[%emt 0:00:00]} d6 {[%emt 0:00:00]} 2. d4 {[%emt 0:00:00]} Nf6 {[%emt 0:00:00]} 3. Nc3 {[%emt 0:00:00]} g6 {[%emt 0:00:00]} 4. Nf3 {[%emt 0:00:05]} Bg7 {[%emt 0:00:08]} 5. Be3 {[%emt 0:00:14]} O-O {[%emt 0:00:34]} 6. Qd2 {[%emt 0:00:36]} Nc6 {[%emt 0:00:41] B08: Pirc Defence: Classical System.} 7. O-O-O {[%emt 0:02:52]} a6 {[%emt 0:02:00]} 8. d5 {[%emt 0:00:38]} Nb8 {[%emt 0:00:26]} 9. Bh6 {[%emt 0:03:54] [#]} e6 $146 {[%emt 0:03:13]} ({Predecessor:} 9... b5 10. Bxg7 Kxg7 11. Bd3 c5 12. dxc6 Nxc6 13. Nd5 e6 14. Nf4 Bb7 15. h4 Qa5 16. Qxa5 Nxa5 {½-½ (42) Ellen,J-Tsiperstein,J Dortmund 2000}) 10. Bd3 {[%emt 0:22:04]} Bxh6 {[%emt 0:12:02]} 11. Qxh6 {[%emt 0:00:10]} Ng4 {[%emt 0:00:17]} 12. Qd2 {[%emt 0:00:48]} Nd7 13. h3 {[%emt 0:06:11]} Nge5 {[%emt 0:04:20]} 14. Nxe5 {[%emt 0:00:09]} Nxe5 {[%emt 0:00:20]} 15. f4 {[%emt 0:00:28]} Nd7 {[%emt 0:06:39]} 16. g4 {[%emt 0:05:23]} Nc5 {[%emt 0:02:56]} 17. dxe6 {[%emt 0:03:46]} fxe6 {[%emt 0:01:30]} 18. f5 {[%emt 0:01:06]} Nxd3+ $16 {[%emt 0:01:44]} 19. Qxd3 {[%emt 0:00:27]} exf5 {[%emt 0:04:47]} 20. gxf5 {[%emt 0:00:18]} Qf6 {[%emt 0:34:10]} 21. Nd5 {[%emt 0:01:18]} Qg5+ {[%emt 0:01:12]} 22. Kb1 {[%emt 0:00:17]} Rf7 {[%emt 0:00:48]} 23. Rhg1 {[%emt 0:00:49]} Qh6 {[%emt 0:01:10]} 24. Qc4 {[%emt 0:00:59]} c6 {[%emt 0:03:10]} 25. fxg6 {[%emt 0:00:08]} hxg6 {[%emt 0:00:16]} 26. Rxg6+ {[%emt 0:00:04]} 1-0

[Event "POL-chT 2nd League Juniors 2020"]
[Site "Sypniewo"]
[Date "2020.10.27"]
[Round "6.22"]
[White "Rozek, Michal"]
[Black "Karaszewski, Gabriel"]
[Result "1/2-1/2"]
[ECO "B30"]
[WhiteElo "1442"]
[BlackElo "1614"]
[Annotator "NA RC"]
[PlyCount "73"]
[EventDate "2020.10.23"]
[EventType "team-tourn"]
[EventCountry "POL"]
[SourceTitle "playchess.com"]
[Source "ChessBase"]
[SourceQuality "1"]
[TimeControl "5400+30"]

1. e4 {[%emt 0:00:00]} c5 {[%emt 0:00:00]} 2. Nf3 {[%emt 0:00:00]} Nc6 {[%emt 0:00:00]} 3. Bb5 {[%emt 0:00:03]} e6 {[%emt 0:00:00]} 4. O-O {[%emt 0:02:43]} Nge7 {[%emt 0:00:00]} 5. Nc3 {[%emt 0:01:59]} a6 {[%emt 0:00:00]} 6. Bxc6 {[%emt 0:01:10]} Nxc6 {[%emt 0:00:00]} 7. d4 {[%emt 0:03:50]} cxd4 {[%emt 0:00:03]} 8. Nxd4 {[%emt 0:00:13]} Be7 {[%emt 0:00:16]} 9. Nxc6 {[%emt 0:05:21]} bxc6 {[%emt 0:00:22]} 10. e5 {[%emt 0:01:51]} O-O {[%emt 0:00:18]} 11. Ne4 {[%emt 0:01:49]} f6 {[%emt 0:06:44]} 12. Bf4 {[%emt 0:16:58]} fxe5 {[%emt 0:02:18]} 13. Bxe5 {[%emt 0:00:26]} d5 {[%emt 0:02:44]} 14. Qg4 {[%emt 0:05:46]} Rf7 {[%emt 0:00:39]} 15. Rad1 {[%emt 0:03:43]} Qf8 {[%emt 0:09:23]} 16. Ng5 {[%emt 0:13:21]} Rf5 {[%emt 0:04:20]} 17. f4 {[%emt 0:01:40]} Bxg5 {[%emt 0:01:43]} 18. fxg5 {[%emt 0:00:47]} Qc5+ {[%emt 0:01:27]} 19. Bd4 {[%emt 0:03:00]} Qxc2 {[%emt 0:02:42]} 20. Rc1 {[%emt 0:08:57]} Qa4 {[%emt 0:12:55]} 21. Rxf5 {[%emt 0:03:43]} exf5 {[%emt 0:00:07]} 22. Qf4 {[%emt 0:00:59]} c5 {[%emt 0:13:42]} 23. Rxc5 {[%emt 0:02:49]} Be6 {[%emt 0:07:57]} 24. b3 {[%emt 0:12:57]} Qe8 {[%emt 0:05:18]} 25. Qe5 {[%emt 0:01:22]} Qg6 {[%emt 0:04:35]} 26. Rxd5 {[%emt 0:03:24]} Re8 {[%emt 0:01:55]} 27. Rd6 {[%emt 0:00:39]} f4 {[%emt 0:07:39]} 28. Bc3 {[%emt 0:01:03]} Qb1+ {[%emt 0:00:45]} 29. Kf2 {[%emt 0:00:06]} Qc2+ {[%emt 0:01:07]} 30. Rd2 {[%emt 0:00:23]} Qg6 {[%emt 0:00:22]} 31. Re2 {[%emt 0:01:07]} Qf7 {[%emt 0:07:42]} 32. Qd4 {[%emt 0:01:10]} Qc7 {[%emt 0:01:21]} 33. Re4 {[%emt 0:01:04]} Rd8 {[%emt 0:02:15]} 34. Qe5 {[%emt 0:00:44]} Qxe5 {[%emt 0:01:17]} 35. Rxe5 {[%emt 0:00:03]} Bf7 {[%emt 0:00:55]} 36. Re4 {[%emt 0:00:29]} Rc8 {[%emt 0:00:16]} 37. Bd2 {[%emt 0:00:39]} 1/2-1/2

[Event "POL-chT 2nd League Juniors 2020"]
[Site "Sypniewo"]
[Date "2020.10.27"]
[Round "6.23"]
[White "Lascar, Maria Elena"]
[Black "Hertlein, Irena"]
[Result "0-1"]
[ECO "B22"]
[WhiteElo "1552"]
[BlackElo "1893"]
[Annotator "NA RC"]
[PlyCount "82"]
[EventDate "2020.10.23"]
[EventType "team-tourn"]
[EventCountry "POL"]
[SourceTitle "playchess.com"]
[Source "ChessBase"]
[SourceQuality "1"]
[TimeControl "5400+30"]

1. e4 {[%emt 0:00:00]} c5 {[%emt 0:00:00]} 2. c3 {[%emt 0:00:00]} e6 {[%emt 0:06:16]} 3. Nf3 {[%emt 0:05:26]} a6 {[%emt 0:00:13]} 4. d4 {[%emt 0:04:43]} d5 {[%emt 0:01:00]} 5. exd5 {[%emt 0:02:14]} exd5 {[%emt 0:05:00]} 6. Bd3 {[%emt 0:08:03]} c4 {[%emt 0:05:29] B22: Sicilian: 2 c3.} 7. Bc2 {[%emt 0:00:30]} Nc6 {[%emt 0:02:20]} 8. O-O {[%emt 0:01:14] [#]} Bg4 $146 {[%emt 0:04:42]} ({Predecessor:} 8... Bd6 9. b3 cxb3 10. axb3 Nge7 11. Re1 O-O 12. Nbd2 Bf5 13. Nf1 Rc8 14. Bd2 Qd7 {½-½ (73) Karthikeyan,M (2606)-Saptarshi,R (2460) New Delhi 2020}) 9. Qe1+ {[%emt 0:10:11]} Be7 {[%emt 0:01:04]} 10. Ne5 {[%emt 0:00:42]} Nf6 {[%emt 0:07:38]} 11. f3 {[%emt 0:16:21]} Be6 {[%emt 0:10:39]} 12. Nxc6 {[%emt 0:03:38]} bxc6 {[%emt 0:00:05]} 13. b3 {[%emt 0:01:28]} O-O {[%emt 0:05:36]} 14. Be3 {[%emt 0:07:09]} Qc7 {[%emt 0:00:57]} 15. Nd2 {[%emt 0:01:35]} c5 {[%emt 0:02:26]} 16. Qf2 {[%emt 0:08:00]} cxd4 {[%emt 0:08:25]} 17. Bxd4 {[%emt 0:00:22]} Rab8 {[%emt 0:13:31]} 18. Rfe1 {[%emt 0:06:05]} Nd7 {[%emt 0:02:58]} 19. f4 {[%emt 0:01:59]} Nf6 {[%emt 0:08:18]} 20. h3 {[%emt 0:06:24]} Rfe8 {[%emt 0:05:01]} 21. b4 {[%emt 0:04:30]} Ra8 {[%emt 0:03:20]} 22. Re3 {[%emt 0:02:08]} Nh5 {[%emt 0:01:27]} 23. Re5 {[%emt 0:03:31]} Nf6 {[%emt 0:01:07]} 24. Rg5 $2 {[%emt 0:03:46]} (24. Rae1 $18) 24... h6 {[%emt 0:01:06]} 25. Rg3 {[%emt 0:01:34]} Nh5 {[%emt 0:01:55]} 26. Rf3 {[%emt 0:00:17]} Bf6 {[%emt 0:00:31]} 27. Bxf6 {[%emt 0:00:26]} Nxf6 {[%emt 0:00:01]} 28. Qd4 {[%emt 0:00:51]} Qa7 {[%emt 0:01:42]} 29. Qxa7 Rxa7 {[%emt 0:00:00]} 30. g4 {[%emt 0:01:03]} Bc8 {[%emt 0:01:27]} 31. Rf2 {[%emt 0:00:35]} Rae7 {[%emt 0:00:25]} 32. Rd1 {[%emt 0:00:36]} (32. Nf1 $17 {is a better defense.}) 32... Re1+ $2 {[%emt 0:00:38]} (32... Re3 $17 33. Ba4 Rg3+ 34. Rg2 Rxg2+ 35. Kxg2 Re2+ 36. Kf1 Rh2 37. Nxc4 Rh1+ 38. Kf2 Ne4+ 39. Kf3 Rxh3+ 40. Kg2 Rg3+ 41. Kh2 Rxc3) 33. Rxe1 {[%emt 0:00:19]} Rxe1+ {[%emt 0:00:00]} 34. Kg2 {[%emt 0:00:33]} Bb7 $17 {[%emt 0:00:10]} 35. Kh2 {[%emt 0:00:26]} h5 {[%emt 0:01:20]} 36. g5 {[%emt 0:00:34]} Ne4 {[%emt 0:00:14]} 37. Bxe4 {[%emt 0:00:40]} dxe4 {[%emt 0:00:01]} 38. Nxc4 {[%emt 0:00:24]} e3 {[%emt 0:00:03]} 39. Rb2 {[%emt 0:00:39]} h4 {[%emt 0:00:36]} 40. Rg2 {[%emt 0:00:29]} e2 {[%emt 0:00:18]} 41. Ne3 {[%emt 0:00:31]} Rh1+ {[%emt 0:00:28]} 0-1

[Event "POL-chT 2nd League Juniors 2020"]
[Site "Sypniewo"]
[Date "2020.10.28"]
[Round "7.1"]
[White "Chaczynski, Kamil"]
[Black "Zerebiec, Maurycy"]
[Result "1-0"]
[ECO "C16"]
[WhiteElo "1929"]
[BlackElo "1917"]
[Annotator "ChessBase"]
[PlyCount "119"]
[EventDate "2020.10.23"]
[EventType "team-tourn"]
[EventCountry "POL"]
[SourceTitle "playchess.com"]
[Source "ChessBase"]
[SourceQuality "1"]
[TimeControl "5400+30"]

1. e4 e6 2. d4 d5 3. Nc3 Bb4 4. e5 Ne7 5. a3 Bxc3+ 6. bxc3 c5 7. Bd3 Qa5 8. Bd2 Qa4 9. Qb1 c4 10. Be2 Nbc6 11. Nh3 b6 12. O-O Bd7 13. Nf4 O-O-O 14. Nh5 Rdg8 15. Qb2 h6 16. Bg4 g6 17. Nf6 Rg7 18. Qc1 g5 19. f4 gxf4 20. Bxf4 Ng8 21. Bh5 Nxf6 22. exf6 Rgh7 23. Rf3 e5 24. dxe5 Bf5 25. Rf2 Nb8 26. Qd1 Be6 27. Bg4 Bxg4 28. Qxg4+ Qd7 29. Qf3 Na6 30. Rd1 Rd8 31. Rfd2 Nc7 32. Ra1 Qe6 33. a4 h5 34. Qe3 Kb7 35. a5 Ra8 36. Qd4 Rhh8 37. Rdd1 h4 38. Be3 Rhe8 39. axb6 axb6 40. Rxa8 Rxa8 41. Qxh4 Qxe5 42. Qd4 Qxd4 43. Bxd4 Ra2 44. Re1 Ne6 45. Rxe6 fxe6 46. f7 Ra8 47. Bg7 Kc6 48. f8=Q Rxf8 49. Bxf8 b5 50. h4 Kd7 51. Kf2 e5 52. Bc5 Kc6 53. h5 Kxc5 54. h6 d4 55. cxd4+ Kxd4 56. h7 Kc3 57. h8=Q Kxc2 58. Qxe5 b4 59. Qd4 Kb3 60. Ke2 1-0

[Event "POL-chT 2nd League Juniors 2020"]
[Site "Sypniewo"]
[Date "2020.10.28"]
[Round "7.1"]
[White "Twardowski, Hubert"]
[Black "Piwowarczyk, Bartlomiej"]
[Result "1/2-1/2"]
[ECO "B40"]
[WhiteElo "1912"]
[BlackElo "1773"]
[Annotator "ChessBase"]
[PlyCount "80"]
[EventDate "2020.10.23"]
[EventType "team-tourn"]
[EventCountry "POL"]
[SourceTitle "playchess.com"]
[Source "ChessBase"]
[SourceQuality "1"]
[TimeControl "5400+30"]

1. e4 {[%emt 0:00:04]} c5 {[%emt 0:00:00]} 2. Nf3 {[%emt 0:03:47]} e6 {[%emt 0:00:05]} 3. d4 {[%emt 0:00:43]} cxd4 {[%emt 0:00:26]} 4. Nxd4 {[%emt 0:00:11]} Nf6 {[%emt 0:00:32]} 5. Bd3 {[%emt 0:06:06]} Nc6 {[%emt 0:02:52]} 6. Nb3 {[%emt 0:04:44]} d5 {[%emt 0:02:30]} 7. exd5 {[%emt 0:02:40]} exd5 {[%emt 0:00:20]} 8. O-O {[%emt 0:00:55]} Be7 {[%emt 0:02:25]} 9. Re1 {[%emt 0:05:33]} O-O {[%emt 0:01:29]} 10. Bf4 {[%emt 0:00:44]} Be6 {[%emt 0:03:03]} 11. N1d2 {[%emt 0:04:08]} Rc8 {[%emt 0:13:54]} 12. Nf3 {[%emt 0:04:38]} Bg4 {[%emt 0:04:03]} 13. Be2 {[%emt 0:01:08]} Ne4 {[%emt 0:18:34]} 14. Nfd4 {[%emt 0:06:16]} Bxe2 {[%emt 0:04:40]} 15. Rxe2 {[%emt 0:00:22]} Bf6 {[%emt 0:07:59]} 16. c3 {[%emt 0:01:06]} Bxd4 {[%emt 0:11:56]} 17. Nxd4 {[%emt 0:02:37]} Qf6 {[%emt 0:02:13]} 18. Be3 {[%emt 0:02:21]} a6 {[%emt 0:04:13]} 19. Qb3 {[%emt 0:10:05]} Nxd4 {[%emt 0:02:37]} 20. Bxd4 {[%emt 0:01:09]} Qc6 {[%emt 0:00:35]} 21. Rae1 {[%emt 0:05:06]} Rfe8 {[%emt 0:03:30]} 22. Re3 {[%emt 0:28:00]} Nd6 {[%emt 0:02:33]} 23. Qd1 {[%emt 0:01:09]} Nf5 {[%emt 0:02:07]} 24. Re5 {[%emt 0:00:17]} Nxd4 {[%emt 0:04:09]} 25. Qxd4 {[%emt 0:00:32]} Rxe5 {[%emt 0:01:01]} 26. Rxe5 {[%emt 0:01:03]} Rd8 {[%emt 0:00:09]} 27. a4 {[%emt 0:03:14]} h6 {[%emt 0:00:36]} 28. h3 {[%emt 0:00:06]} Qd6 {[%emt 0:01:02]} 29. Re2 {[%emt 0:04:41]} Qc6 {[%emt 0:01:35]} 30. Qd1 {[%emt 0:00:14]} Qc4 {[%emt 0:01:34]} 31. Rd2 {[%emt 0:00:40]} b5 {[%emt 0:00:48]} 32. Rd4 {[%emt 0:00:17]} Qc5 {[%emt 0:00:47]} 33. axb5 {[%emt 0:00:29]} axb5 {[%emt 0:00:37]} 34. Qd3 {[%emt 0:01:13]} g6 {[%emt 0:01:28]} 35. b3 {[%emt 0:00:32]} Kg7 {[%emt 0:00:34]} 36. g3 {[%emt 0:00:32]} Qc6 {[%emt 0:00:30]} 37. Rb4 {[%emt 0:00:21]} Rb8 {[%emt 0:00:25]} 38. Qd4+ {[%emt 0:00:30]} f6 {[%emt 0:00:35]} 39. c4 {[%emt 0:00:30]} dxc4 {[%emt 0:00:29]} 40. bxc4 {[%emt 0:00:03]} Re8 {[%emt 0:00:22]} 1/2-1/2

[Event "POL-chT 2nd League Juniors 2020"]
[Site "Sypniewo"]
[Date "2020.10.28"]
[Round "7.2"]
[White "Pietrzak, Tomasz"]
[Black "Malek, Jan"]
[Result "0-1"]
[ECO "A09"]
[WhiteElo "1896"]
[BlackElo "1941"]
[Annotator "ChessBase"]
[PlyCount "52"]
[EventDate "2020.10.23"]
[EventType "team-tourn"]
[EventCountry "POL"]
[SourceTitle "playchess.com"]
[Source "ChessBase"]
[SourceQuality "1"]
[TimeControl "5400+30"]

1. Nf3 {[%emt 0:00:00]} d5 {[%emt 0:00:00]} 2. c4 {[%emt 0:00:00]} d4 {[%emt 0:00:00]} 3. g3 {[%emt 0:00:21]} Nc6 {[%emt 0:00:43]} 4. Bg2 {[%emt 0:01:43]} Nf6 {[%emt 0:01:02]} 5. O-O {[%emt 0:00:38]} e5 {[%emt 0:02:21]} 6. d3 {[%emt 0:02:17]} Be7 {[%emt 0:00:12]} 7. b4 {[%emt 0:08:09]} Bxb4 {[%emt 0:03:50]} 8. Nxe5 {[%emt 0:04:05]} O-O {[%emt 0:00:17]} 9. Nxc6 {[%emt 0:01:02]} bxc6 {[%emt 0:00:11]} 10. a3 {[%emt 0:11:14]} Bd6 {[%emt 0:02:25]} 11. Bb2 {[%emt 0:03:08]} Rb8 {[%emt 0:03:29]} 12. Bxd4 {[%emt 0:09:26]} Bxg3 {[%emt 0:00:38]} 13. hxg3 {[%emt 0:29:12]} Qxd4 {[%emt 0:00:13]} 14. Nd2 {[%emt 0:01:01]} Be6 {[%emt 0:07:39]} 15. Rb1 {[%emt 0:05:32]} Ng4 {[%emt 0:02:41]} 16. Nf3 {[%emt 0:04:04]} Qc5 {[%emt 0:00:38]} 17. Rb3 {[%emt 0:05:15]} h6 {[%emt 0:03:05]} 18. e3 {[%emt 0:00:54]} Rfd8 {[%emt 0:00:56]} 19. Nd4 {[%emt 0:01:29]} Qh5 {[%emt 0:02:55]} 20. Re1 {[%emt 0:00:28]} Bd7 {[%emt 0:01:07]} 21. Qb1 {[%emt 0:02:58]} Rb6 {[%emt 0:01:03]} 22. Re2 {[%emt 0:02:03]} c5 {[%emt 0:01:00]} 23. Rxb6 {[%emt 0:02:52]} cxb6 {[%emt 0:02:56]} 24. Nb5 {[%emt 0:02:08]} Ne5 {[%emt 0:00:34]} 25. Nc3 {[%emt 0:01:39]} Bg4 {[%emt 0:00:41]} 26. Rd2 {[%emt 0:00:42]} Nf3+ {[%emt 0:00:14]} 0-1